bitfinex-derivatives/quotes_SOLF0:USTF0_20250929
["timestamp","ask_amount","ask_price","bid_price","bid_amount"]
[1759150068002,4.3474,206.92,206.81,11.8193]
[1759150068604,12.3874,206.92,206.81,11.8193]
[1759150071807,4.3476,206.9,206.81,11.8193]
[1759150072715,4.3476,206.9,206.81,7.47]
[1759150073512,8.04,206.89,206.77,11.51351027]
[1759150073718,67.6275,206.91,206.77,11.51351027]
[1759150073909,8.04,206.9,206.78,4.35]
[1759150074110,8.04,206.9,206.79,7.52]
[1759150074311,8.04,206.9,206.8,7.52]
[1759150074517,8.04,206.9,206.8,11.56351027]
[1759150075112,8.04,206.9,206.82,7.52]
[1759150078424,8.04,206.9,206.82,11.8691]
[1759150079722,8.04,206.9,206.83,4.3489]
[1759150080315,8.04,206.9,206.82,11.56351027]
[1759150080521,8.04,206.9,206.82,7.52]
[1759150080724,8.04,206.9,206.82,11.56351027]
[1759150081328,8.04,206.9,206.82,7.52]
[1759150081824,7.96,206.88,206.82,7.52]
[1759150082022,7.96,206.88,206.79,7.52]
[1759150082324,7.96,206.88,206.79,11.56351027]
[1759150082818,7.96,206.88,206.77,14.23410194]
[1759150082819,7.96,206.89,206.78,4.04351027]
[1759150083020,7.96,206.91,206.79,7.52]
[1759150083222,7.96,206.93,206.79,7.52]
[1759150083627,7.96,206.88,206.79,11.8701]
[1759150084124,7.96,206.88,206.79,15.91361027]
[1759150084524,12.3084,206.88,206.8,4.3498]
[1759150088329,7.96,206.88,206.8,4.3498]
[1759150088525,7.96,206.88,206.8,8.39331027]
[1759150088924,7.96,206.88,206.8,4.3498]
[1759150089522,12.3084,206.88,206.8,4.3498]
[1759150092232,12.3084,206.88,206.8,5.66570329]
[1759150093435,4.3486,206.87,206.8,5.66570329]
[1759150093735,7.96,206.88,206.8,1.31590329]
[1759150094630,4.3489,206.86,206.8,1.31590329]
[1759150094831,7.96,206.88,206.79,11.56351027]
[1759150095035,7.96,206.85,206.76,9.71011356]
[1759150096336,9.27590329,206.82,206.76,4.04351027]
[1759150097433,7.96,206.82,206.76,4.04351027]
[1759150098734,12.3097,206.82,206.76,4.04351027]
[1759150099331,8.04,206.81,206.77,4.04351027]
[1759150101226,1.31590329,206.85,206.78,7.95]
[1759150101431,8.04,206.84,206.78,7.95]
[1759150101731,8.04,206.91,206.83,5.35941356]
[1759150101934,8.04,206.91,206.85,1.31590329]
[1759150102729,8.04,206.89,206.84,4.04351027]
[1759150102931,8.04,206.89,206.83,4.04351027]
[1759150103130,8.04,206.89,206.82,4.04351027]
[1759150103332,8.04,206.89,206.83,4.04351027]
[1759150103541,8.04,206.89,206.82,4.04351027]
[1759150103932,8.04,206.89,206.81,4.04351027]
[1759150104332,8.04,206.89,206.82,4.04351027]
[1759150104532,4.3488,206.86,206.82,4.04351027]
[1759150104732,7.76,206.89,206.82,4.04351027]
[1759150105540,7.76,206.89,206.83,4.04351027]
[1759150105726,4.3486,206.87,206.83,4.04351027]
[1759150106142,7.76,206.86,206.83,4.04351027]
[1759150106433,7.76,206.86,206.84,4.04351027]
[1759150107538,7.76,206.85,206.84,4.04351027]
[1759150108433,4.3484,206.88,206.83,6.72316487]
[1759150108632,7.76,206.87,206.86,4.06499322]
[1759150109033,7.76,206.93,206.86,4.06499322]
[1759150109238,7.76,206.93,206.87,5.38089651]
[1759150110544,4.3478,206.91,206.87,5.38089651]
[1759150110738,12.1078,206.91,206.87,4.06499322]
[1759150110940,7.76,206.93,206.87,4.06499322]
[1759150111242,12.1085,206.88,206.86,4.06499322]
[1759150111543,7.76,206.87,206.86,4.06499322]
[1759150111742,4.3492,206.85,206.83,4.06499322]
[1759150111941,9.07590329,206.86,206.82,4.06499322]
[1759150112239,9.07590329,206.86,206.8,4.06499322]
[1759150113231,76.72460329,206.86,206.79,4.06499322]
[1759150113637,4.35,206.81,206.79,4.06499322]
[1759150113847,7.76,206.8,206.79,4.06499322]
[1759150114239,7.76,206.8,206.77,5.40726158]
[1759150114240,12.1107,206.77,206.72,9.22621856]
[1759150114542,9.07590329,206.8,206.73,7.92]
[1759150114730,7.76,206.8,206.73,7.92]
[1759150114935,4.3503,206.79,206.73,9.23590329]
[1759150116141,7.76,206.8,206.73,9.23590329]
[1759150116534,7.76,206.8,206.73,13.58740329]
[1759150116736,119.4,206.81,206.73,13.58740329]
[1759150116938,4.3503,206.8,206.73,13.58740329]
[1759150117646,4.3503,206.8,206.76,7.92]
[1759150118850,123.7296,206.83,206.76,7.92]
[1759150119042,123.7296,206.83,206.77,1.31590329]
[1759150119243,119.38,206.83,206.77,1.31590329]
[1759150120542,4.3498,206.82,206.77,1.31590329]
[1759150120942,7.76,206.81,206.77,9.23590329]
[1759150121439,4.3493,206.84,206.77,9.23590329]
[1759150121638,4.3493,206.84,206.8,7.92]
[1759150122451,7.76,206.85,206.8,7.92]
[1759150122640,7.76,206.85,206.79,9.23590329]
[1759150122844,7.76,206.9,206.83,1.31590329]
[1759150123044,4.3484,206.88,206.85,1.31590329]
[1759150123239,7.76,206.88,206.76,7.92]
[1759150123452,7.76,206.88,206.79,1.31590329]
[1759150123948,7.76,206.86,206.79,1.31590329]
[1759150124246,119.32,206.87,206.79,9.23590329]
[1759150124247,12.1094,206.84,206.79,9.23590329]
[1759150124454,12.1094,206.84,206.8,7.92]
[1759150124652,12.1094,206.84,206.8,9.23590329]
[1759150125353,7.76,206.83,206.8,1.31590329]
[1759150125747,12.1097,206.83,206.8,1.31590329]
[1759150125950,4.3497,206.83,206.76,7.92]
[1759150126151,7.76,206.86,206.78,1.31590329]
[1759150127354,12.1097,206.83,206.78,9.23590329]
[1759150128055,4.3497,206.83,206.79,7.92]
[1759150128250,4.3498,206.82,206.78,1.31590329]
[1759150128555,7.76,206.85,206.76,1.31590329]
[1759150128756,4.3502,206.8,206.76,1.31590329]
[1759150129052,7.76,206.79,206.76,1.31590329]
[1759150129657,7.76,206.76,206.73,1.31590329]
[1759150129958,75.4297,206.8,206.71,1.31590329]
[1759150130959,7.76,206.8,206.73,1.31590329]
[1759150131552,7.76,206.8,206.75,1.31590329]
[1759150131858,119.22,206.82,206.78,7.92]
[1759150132156,126.98,206.82,206.78,7.92]
[1759150132653,4.3498,206.82,206.77,1.31590329]
[1759150132853,7.76,206.81,206.77,1.31590329]
[1759150133156,4.3498,206.82,206.78,7.92]
[1759150133157,7.76,206.82,206.78,7.92]
[1759150133353,12.1094,206.84,206.8,7.92]
[1759150134056,11.8489,206.86,206.81,9.32590329]
[1759150134550,7.5,206.85,206.81,9.32590329]
[1759150135258,4.3492,206.85,206.8,1.31590329]
[1759150135457,7.5,206.84,206.8,1.31590329]
[1759150135656,7.5,206.84,206.8,9.32590329]
[1759150135859,7.5,206.83,206.8,1.31590329]
[1759150136558,7.5,206.83,206.79,1.31590329]
[1759150136756,4.3494,206.84,206.79,1.31590329]
[1759150137054,4.3496,206.83,206.79,1.31590329]
[1759150137358,7.5,206.82,206.79,1.31590329]
[1759150137957,4.3496,206.83,206.79,1.31590329]
[1759150137958,11.8496,206.83,206.79,9.32590329]
[1759150138154,4.3496,206.83,206.79,1.31590329]
[1759150138456,7.5,206.82,206.79,1.31590329]
[1759150138751,7.5,206.81,206.79,1.31590329]
[1759150138952,7.5,206.85,206.77,1.31590329]
[1759150139862,11.8499,206.81,206.77,1.31590329]
[1759150140161,7.5,206.8,206.77,1.31590329]
[1759150140460,7.5,206.8,206.75,8.01]
[1759150140657,7.5,206.8,206.77,1.31590329]
[1759150140951,7.5,206.8,206.71,9.32590329]
[1759150141157,75.1702,206.8,206.71,1.31590329]
[1759150141556,7.5,206.74,206.71,1.31590329]
[1759150141756,67.6756,206.79,206.71,1.31590329]
[1759150141956,7.5,206.78,206.71,1.31590329]
[1759150142461,4.3515,206.74,206.67,10.06837142]
[1759150143559,4.3517,206.73,206.67,10.06837142]
[1759150143858,79.02,206.75,206.65,185.15303973]
[1759150144055,79.02,206.75,206.63,8.01]
[1759150144056,4.3526,206.69,206.63,8.01]
[1759150144261,11.8526,206.69,206.63,8.01]
[1759150144655,7.5,206.74,206.63,8.01]
[1759150145057,7.5,206.74,206.63,12.3635]
[1759150145960,11.8516,206.74,206.65,8.01]
[1759150146354,11.8516,206.74,206.65,12.3632]
[1759150147161,7.5,206.72,206.64,2.05837142]
[1759150147662,7.5,206.72,206.64,10.06837142]
[1759150148161,11.852,206.72,206.64,10.06837142]
[1759150148362,7.5,206.72,206.64,10.06837142]
[1759150148862,4.3522,206.71,206.64,10.06837142]
[1759150149258,4.3522,206.71,206.64,8.01]
[1759150149756,7.5,206.72,206.64,12.3635]
[1759150150259,11.8518,206.72,206.64,12.3635]
[1759150151264,11.8518,206.72,206.64,8.01]
[1759150152161,4.3522,206.71,206.64,8.01]
[1759150152761,4.3524,206.7,206.64,8.01]
[1759150153067,7.5,206.72,206.62,2.05837142]
[1759150153258,7.5,206.72,206.6,8.01]
[1759150153563,4.353,206.67,206.6,8.01]
[1759150154763,7.5,206.68,206.6,8.01]
[1759150155969,7.5,206.68,206.58,2.05837142]
[1759150156661,4.3532,206.66,206.59,7.77]
[1759150156865,7.5,206.68,206.59,7.77]
[1759150157662,4.353,206.67,206.59,7.77]
[1759150157863,7.5,206.68,206.59,7.77]
[1759150158464,4.3536,206.64,206.59,7.77]
[1759150158669,12.1736,206.64,206.59,7.77]
[1759150158865,7.82,206.63,206.59,7.77]
[1759150159265,4.3539,206.62,206.56,2.05837142]
[1759150159566,7.82,206.68,206.57,7.77]
[1759150159760,4.3534,206.65,206.57,7.77]
[1759150159963,91.04,206.67,206.57,7.77]
[1759150160668,7.82,206.66,206.56,6.41337142]
[1759150160867,7.82,206.66,206.56,2.05837142]
[1759150161066,7.82,206.66,206.56,9.82837142]
[1759150161567,4.3534,206.65,206.56,9.82837142]
[1759150162571,4.3534,206.65,206.56,14.18347142]
[1759150162765,4.3536,206.64,206.56,14.18347142]
[1759150163367,4.3538,206.63,206.56,14.18347142]
[1759150164176,4.3541,206.62,206.56,9.82837142]
[1759150164476,7.71,206.64,206.56,7.77]
[1759150164672,4.3543,206.61,206.56,7.77]
[1759150164877,12.0643,206.61,206.56,7.77]
[1759150165175,4.3543,206.61,206.54,12.4055]
[1759150165972,12.0646,206.59,206.54,8.05]
[1759150166186,12.0646,206.59,206.53,10.10837142]
[1759150166375,12.0646,206.59,206.53,8.05]
[1759150166572,7.71,206.59,206.53,8.05]
[1759150169073,12.0647,206.59,206.53,8.05]
[1759150169577,7.71,206.59,206.53,8.05]
[1759150169872,7.71,206.61,206.52,2.05837142]
[1759150170078,7.71,206.61,206.5,4.3564]
[1759150170275,4.3553,206.56,206.5,4.3564]
[1759150170485,7.71,206.56,206.49,10.10837142]
[1759150171368,360.9252,206.69,206.53,8.05]
[1759150171369,7.71,206.64,206.53,8.05]
[1759150171577,37.68,206.63,206.53,8.05]
[1759150172383,7.71,206.62,206.53,8.05]
[1759150172584,4.3544,206.6,206.53,12.4057]
[1759150175281,7.71,206.65,206.55,2.05837142]
[1759150175582,7.71,206.65,206.56,8.05]
[1759150175977,7.71,206.65,206.56,12.405]
[1759150176386,7.71,206.65,206.56,8.05]
[1759150177186,7.71,206.65,206.55,2.05837142]
[1759150177187,4.3542,206.61,206.55,6.41357142]
[1759150177389,4.3542,206.61,206.56,8.05]
[1759150177687,4.3542,206.61,206.55,6.41357142]
[1759150178089,4.3542,206.61,206.55,14.46357142]
[1759150178976,4.3536,206.64,206.57,8.05]
[1759150179178,7.71,206.65,206.55,2.05837142]
[1759150179389,7.71,206.65,206.53,8.05]
[1759150180686,4.354,206.62,206.53,8.05]
[1759150180881,7.71,206.65,206.53,8.05]
[1759150181282,7.71,206.65,206.52,2.05837142]
[1759150181283,4.3537,206.63,206.57,8.05]
[1759150182692,7.71,206.65,206.57,8.05]
[1759150183691,12.0641,206.61,206.57,8.05]
[1759150185088,4.3541,206.61,206.56,8.05]
[1759150185290,4.3537,206.63,206.56,8.05]
[1759150186990,7.71,206.64,206.56,8.05]
[1759150187187,119.28,206.66,206.56,8.05]
[1759150187393,7.71,206.67,206.59,8.05]
[1759150188294,7.71,206.67,206.6,8.05]
[1759150188995,4.3531,206.66,206.6,12.4041]
[1759150189801,4.3531,206.66,206.6,4.3541]
[1759150189998,4.3531,206.66,206.61,4.3539]
[1759150190199,4.3527,206.68,206.62,8.05]
[1759150190900,4.3527,206.68,206.62,16.44029131]
[1759150191094,7.71,206.7,206.62,16.44029131]
[1759150192599,4.3524,206.69,206.62,16.44029131]
[1759150193303,75.406,206.71,206.62,4.03669131]
[1759150193803,75.406,206.71,206.61,4.03669131]
[1759150194708,4.3528,206.67,206.61,4.03669131]
[1759150195001,4.3528,206.67,206.59,12.4043]
[1759150195002,4.3528,206.67,206.6,4.03669131]
[1759150195202,4.3528,206.67,206.61,4.03669131]
[1759150195698,119.24,206.66,206.59,4.03669131]
[1759150196002,7.67,206.65,206.58,4.03669131]
[1759150196302,7.67,206.65,206.59,4.03669131]
[1759150196602,12.0233,206.65,206.59,4.03669131]
[1759150199106,4.3535,206.64,206.59,4.03669131]
[1759150199306,4.3535,206.64,206.6,7.69]
[1759150199708,7.67,206.65,206.6,7.69]
[1759150200005,119.24,206.66,206.6,7.69]
[1759150200206,126.91,206.66,206.6,7.69]
[1759150201395,12.0235,206.64,206.6,7.69]
[1759150201604,7.67,206.65,206.59,4.03669131]
[1759150202707,12.0238,206.63,206.59,4.03669131]
[1759150202896,7.67,206.63,206.59,11.72669131]
[1759150203716,119.24,206.66,206.6,7.69]
[1759150204209,119.24,206.66,206.6,9.00852534]
[1759150204508,119.24,206.66,206.6,7.69]
[1759150204696,7.67,206.65,206.59,4.03669131]
[1759150205608,7.67,206.62,206.59,4.03669131]
[1759150205804,4.3536,206.63,206.6,7.69]
[1759150206406,126.91,206.66,206.6,7.69]
[1759150207004,119.24,206.66,206.61,1.31852534]
[1759150207199,119.24,206.66,206.62,7.69]
[1759150208007,119.24,206.66,206.61,1.31852534]
[1759150208204,119.24,206.66,206.62,7.69]
[1759150208910,126.91,206.66,206.62,7.69]
[1759150209807,131.263,206.66,206.62,7.69]
[1759150210711,119.24,206.66,206.62,7.69]
[1759150210903,119.24,206.66,206.61,1.31852534]
[1759150211710,126.91,206.66,206.62,7.69]
[1759150211906,7.67,206.65,206.62,7.69]
[1759150212917,123.593,206.66,206.62,7.69]
[1759150213112,131.263,206.66,206.62,7.69]
[1759150213910,126.91,206.66,206.62,7.69]
[1759150214212,119.24,206.66,206.62,7.69]
[1759150214514,7.67,206.65,206.62,7.69]
[1759150216110,4.3517,206.72,206.64,1.31852534]
[1759150216309,4.3517,206.72,206.66,1.31852534]
[1759150216513,4.3517,206.72,206.66,5.67132534]
[1759150217210,4.3517,206.72,206.68,9.17852534]
[1759150217908,12.2117,206.72,206.68,9.17852534]
[1759150218111,12.2117,206.72,206.66,1.31852534]
[1759150220312,7.86,206.72,206.65,4.03669131]
[1759150220514,7.86,206.72,206.64,11.89669131]
[1759150221017,12.2116,206.72,206.65,1.31852534]
[1759150222416,12.2116,206.72,206.67,1.31852534]
[1759150222615,12.2116,206.72,206.67,9.17852534]
[1759150222816,7.86,206.72,206.68,7.86]
[1759150223012,119.2,206.73,206.68,7.86]
[1759150223217,7.86,206.72,206.68,7.86]
[1759150223618,352.24,206.75,206.69,1.31852534]
[1759150223918,7.86,206.76,206.72,7.86]
[1759150224112,7.86,206.76,206.67,4.03669131]
[1759150224113,119.18,206.77,206.74,7.84]
[1759150224310,126.7,206.77,206.73,1.31852534]
[1759150224512,126.7,206.77,206.74,7.84]
[1759150225111,126.7,206.77,206.73,5.35521665]
[1759150225316,7.52,206.76,206.71,13.19521665]
[1759150225514,7.52,206.76,206.71,5.35521665]
[1759150226121,123.5307,206.77,206.71,5.35521665]
[1759150226522,131.0507,206.77,206.71,5.35521665]
[1759150227614,131.0507,206.77,206.71,1.31852534]
[1759150230924,131.0507,206.77,206.69,4.03669131]
[1759150230925,7.52,206.75,206.69,4.03669131]
[1759150231123,7.52,206.75,206.68,1.31852534]
[1759150232426,130.9911,206.75,206.68,1.31852534]
[1759150233214,4.3513,206.74,206.68,1.31852534]
[1759150233827,7.52,206.73,206.68,1.31852534]
[1759150234028,4.3513,206.74,206.68,1.31852534]
[1759150234431,7.52,206.73,206.68,1.31852534]
[1759150234825,4.3513,206.74,206.68,1.31852534]
[1759150235031,7.52,206.74,206.68,1.31852534]
[1759150236631,119.12,206.75,206.71,7.84]
[1759150236832,126.64,206.75,206.71,7.84]
[1759150237239,7.52,206.74,206.71,7.84]
[1759150237538,119.12,206.75,206.7,1.31852534]
[1759150237942,7.52,206.74,206.7,1.31852534]
[1759150238242,119.12,206.75,206.7,1.31852534]
[1759150238433,7.52,206.74,206.7,1.31852534]
[1759150239239,119.12,206.75,206.7,1.31852534]
[1759150239835,7.52,206.74,206.7,1.31852534]
[1759150240035,7.52,206.74,206.7,9.15852534]
[1759150240234,7.52,206.74,206.7,7.84]
[1759150240931,7.52,206.74,206.7,9.15852534]
[1759150241339,7.52,206.74,206.7,1.31852534]
[1759150241543,7.52,206.74,206.7,9.15852534]
[1759150241733,119.12,206.75,206.7,1.31852534]
[1759150242041,126.64,206.75,206.71,7.84]
[1759150242738,119.12,206.75,206.7,1.31852534]
[1759150242942,7.52,206.74,206.7,1.31852534]
[1759150243642,7.52,206.74,206.68,1.31852534]
[1759150247343,7.52,206.74,206.66,11.87669131]
[1759150247544,7.52,206.74,206.68,1.31852534]
[1759150247744,7.52,206.74,206.66,11.87669131]
[1759150247944,7.52,206.74,206.69,1.31852534]
[1759150248339,123.471,206.75,206.69,1.31852534]
[1759150248541,7.52,206.74,206.69,1.31852534]
[1759150248733,123.471,206.75,206.69,1.31852534]
[1759150249140,4.3512,206.74,206.69,1.31852534]
[1759150250141,7.52,206.73,206.69,1.31852534]
[1759150250542,7.52,206.73,206.67,4.03669131]
[1759150250743,8.83852534,206.74,206.65,4.03669131]
[1759150251546,4.352,206.7,206.65,4.03669131]
[1759150251744,7.52,206.7,206.63,4.03669131]
[1759150251942,1.31852534,206.69,206.62,1.30239006]
[1759150252148,4.3528,206.66,206.62,1.30239006]
[1759150252339,7.52,206.65,206.62,1.30239006]
[1759150252744,4.3528,206.66,206.62,1.30239006]
[1759150252948,7.52,206.68,206.62,1.30239006]
[1759150253943,7.52,206.68,206.63,1.31852534]
[1759150254253,25.61,206.73,206.67,1.31852534]
[1759150255445,25.61,206.73,206.65,1.31852534]
[1759150255446,7.77,206.72,206.65,1.31852534]
[1759150256058,7.77,206.69,206.62,5.33908137]
[1759150256349,1.31852534,206.68,206.61,4.03669131]
[1759150256552,4.3529,206.66,206.61,4.03669131]
[1759150256754,88.62,206.67,206.61,4.03669131]
[1759150256947,88.62,206.67,206.58,4.03669131]
[1759150256948,9.08852534,206.66,206.58,4.03669131]
[1759150257442,4.3537,206.62,206.58,4.03669131]
[1759150257643,7.77,206.61,206.58,4.03669131]
[1759150257848,7.77,206.65,206.58,4.03669131]
[1759150258150,7.77,206.65,206.56,4.03669131]
[1759150258346,7.77,206.68,206.61,7.49]
[1759150258655,9.08852534,206.68,206.58,5.35521665]
[1759150258947,7.77,206.63,206.58,4.03669131]
[1759150259252,7.77,206.65,206.58,4.03669131]
[1759150259551,7.77,206.65,206.57,4.03669131]
[1759150259944,4.3536,206.63,206.57,4.03669131]
[1759150260744,75.4835,206.65,206.57,4.03669131]
[1759150260940,7.77,206.63,206.56,4.03669131]
[1759150261148,1.31852534,206.62,206.54,5.32822813]
[1759150261456,7.77,206.6,206.54,1.29153682]
[1759150262050,7.77,206.6,206.54,5.32822813]
[1759150262962,119.08,206.62,206.55,7.49]
[1759150263258,7.77,206.65,206.57,8.80852534]
[1759150263555,7.77,206.65,206.59,1.31852534]
[1759150264350,12.1231,206.65,206.59,1.31852534]
[1759150264552,7.77,206.65,206.57,5.35521665]
[1759150264752,7.77,206.62,206.55,4.03669131]
[1759150265055,4.3539,206.61,206.54,5.32822813]
[1759150265250,7.77,206.62,206.54,5.32822813]
[1759150265448,4.3545,206.58,206.54,1.29153682]
[1759150265648,12.1245,206.58,206.54,1.29153682]
[1759150270658,4.3548,206.56,206.49,4.3562]
[1759150270856,12.1248,206.56,206.49,4.3562]
[1759150271064,7.77,206.56,206.48,7.49]
[1759150271955,67.7432,206.56,206.45,192.24766392]
[1759150272161,7.77,206.55,206.45,186.83316908]
[1759150272565,12.1259,206.52,206.45,186.83316908]
[1759150272960,7.77,206.52,206.45,186.83316908]
[1759150273466,4.3561,206.5,206.46,7.53]
[1759150274263,4.3565,206.49,206.43,1.30027479]
[1759150274458,8.08,206.51,206.43,1.30027479]
[1759150274759,8.08,206.5,206.38,7.53]
[1759150274952,2.06167516,206.52,206.38,7.53]
[1759150275158,8.08,206.47,206.38,7.53]
[1759150275652,8.08,206.47,206.4,4.3581]
[1759150276163,67.7498,206.54,206.37,5.41449484]
[1759150276164,4.3559,206.51,206.41,11.8878]
[1759150276464,8.08,206.52,206.42,2.06167516]
[1759150276654,8.08,206.52,206.43,7.53]
[1759150276851,12.4358,206.52,206.44,4.3572]
[1759150277354,8.08,206.52,206.45,4.357]
[1759150277550,8.08,206.52,206.46,7.53]
[1759150277966,4.3549,206.56,206.46,7.53]
[1759150278162,12.4349,206.56,206.46,7.53]
[1759150278666,12.4349,206.56,206.49,4.3561]
[1759150278968,12.4349,206.56,206.49,11.8861]
[1759150279662,12.4349,206.56,206.49,7.53]
[1759150280066,8.08,206.56,206.45,9.59167516]
[1759150280263,8.08,206.56,206.45,13.94867516]
[1759150280468,12.435,206.56,206.45,9.59167516]
[1759150280669,8.08,206.56,206.45,9.59167516]
[1759150280864,8.08,206.56,206.46,4.3568]
[1759150281062,4.3557,206.52,206.46,4.3568]
[1759150281771,4.3557,206.52,206.45,9.59167516]
[1759150281973,4.356,206.51,206.45,9.59167516]
[1759150282675,12.4354,206.54,206.45,13.94867516]
[1759150283065,8.08,206.54,206.45,13.94867516]
[1759150283774,4.3558,206.52,206.45,13.94867516]
[1759150284178,4.356,206.51,206.45,9.59167516]
[1759150285176,4.3564,206.49,206.41,4.3579]
[1759150285371,8.04,206.48,206.41,12.1279]
[1759150285875,8.04,206.48,206.41,7.77]
[1759150286774,8.04,206.48,206.43,12.1274]
[1759150287174,67.7539,206.53,206.41,4.358]
[1759150287476,127.18,206.52,206.41,4.358]
[1759150288771,12.3967,206.48,206.41,4.358]
[1759150289070,8.04,206.48,206.39,12.1284]
[1759150289277,4.3569,206.47,206.39,12.1284]
[1759150291179,4.357,206.46,206.39,7.77]
[1759150291379,8.04,206.45,206.39,7.77]
[1759150291870,8.04,206.45,206.39,12.1284]
[1759150292881,8.04,206.48,206.37,4.3587]
[1759150293578,4.357,206.46,206.37,4.3587]
[1759150293775,8.04,206.46,206.37,4.3587]
[1759150294175,4.3575,206.44,206.37,4.3587]
[1759150294973,8.04,206.46,206.38,4.3585]
[1759150295475,8.04,206.46,206.39,12.1283]
[1759150295879,8.04,206.46,206.36,7.77]
[1759150297673,4.3574,206.44,206.37,4.3588]
[1759150297984,8.04,206.46,206.36,7.77]
[1759150298184,8.04,206.43,206.33,9.83167516]
[1759150298787,8.04,206.43,206.33,7.77]
[1759150299687,4.3583,206.4,206.33,12.1296]
[1759150301387,4.3586,206.39,206.33,7.77]
[1759150301590,8.04,206.41,206.33,7.77]
[1759150302690,12.3988,206.38,206.33,7.77]
[1759150302889,8.04,206.37,206.27,7.77]
[1759150303081,4.3596,206.34,206.28,4.3606]
[1759150303289,8.04,206.37,206.27,7.77]
[1759150303681,67.803,206.38,206.27,7.77]
[1759150303881,8.04,206.37,206.27,7.77]
[1759150304283,4.3594,206.35,206.27,7.77]
[1759150304885,12.3996,206.34,206.27,7.77]
[1759150305294,8.04,206.34,206.27,7.77]
[1759150305486,67.8049,206.37,206.27,7.77]
[1759150305487,4.36,206.32,206.27,7.77]
[1759150305683,8.04,206.35,206.22,2.06167516]
[1759150305886,4.3598,206.33,206.24,4.3614]
[1759150306088,4.3598,206.33,206.25,7.77]
[1759150306893,4.3598,206.33,206.26,4.3611]
[1759150307092,8.04,206.35,206.27,7.77]
[1759150308094,4.3595,206.34,206.27,12.1307]
[1759150308290,4.3595,206.34,206.27,7.77]
[1759150308597,8.04,206.35,206.27,7.77]
[1759150309394,4.3597,206.33,206.27,7.77]
[1759150309583,75.8514,206.35,206.27,7.77]
[1759150309783,8.04,206.34,206.21,7.77]
[1759150310090,4.3602,206.31,206.24,7.77]
[1759150310289,8.04,206.34,206.24,7.77]
[1759150310494,4.3597,206.33,206.24,12.1314]
[1759150311093,8.04,206.32,206.24,12.1314]
[1759150311690,12.4,206.32,206.24,12.1314]
[1759150313199,4.3602,206.31,206.24,7.77]
[1759150313701,4.3605,206.3,206.24,7.77]
[1759150314596,8.04,206.32,206.24,7.77]
[1759150314988,4.3599,206.33,206.24,7.77]
[1759150315501,7.62,206.37,206.27,7.76]
[1759150316295,11.9789,206.37,206.27,7.76]
[1759150316495,7.62,206.37,206.27,7.76]
[1759150317598,4.3592,206.36,206.29,4.3604]
[1759150317996,7.62,206.37,206.27,7.76]
[1759150318189,119.22,206.39,206.27,7.76]
[1759150318190,7.62,206.38,206.27,7.76]
[1759150318388,4.3596,206.34,206.27,7.76]
[1759150318593,7.62,206.35,206.27,7.76]
[1759150319699,11.98,206.32,206.27,7.76]
[1759150320000,7.62,206.31,206.27,7.76]
[1759150320195,7.62,206.3,206.27,7.76]
[1759150320498,7.62,206.3,206.22,7.76]